bitfinex-derivatives/quotes_BTCF0:USTF0_20241104
["timestamp","ask_amount","ask_price","bid_price","bid_amount"]
[1730730913336,0.013,68363.0,68362.0,0.074179]
[1730730913928,0.3608,68379.0,68362.0,0.074179]
[1730730914135,0.073166,68375.0,68374.0,0.073166]
[1730730914339,0.073171,68372.0,68371.0,0.073169]
[1730730914739,0.073172,68370.0,68369.0,0.073172]
[1730730915045,0.3828,68401.0,68369.0,1.31024531]
[1730730915238,0.3608,68404.0,68384.0,0.64460131]
[1730730915432,0.433935,68404.0,68389.0,0.073151]
[1730730915738,0.07534478,68390.0,68389.0,0.073151]
[1730730915937,0.00219478,68390.0,68389.0,0.231751]
[1730730916438,0.00219386,68404.0,68389.0,0.1586]
[1730730916643,0.00219386,68404.0,68397.0,0.073141]
[1730730916948,0.073141,68398.0,68397.0,0.073141]
[1730730917132,0.00219386,68404.0,68397.0,0.073141]
[1730730917133,0.00219386,68404.0,68403.0,0.073136]
[1730730917334,0.00219386,68404.0,68403.0,0.592496]
[1730730917836,0.014,68404.0,68403.0,1.031056]
[1730730918145,0.073122,68416.0,68413.0,0.073125]
[1730730918347,0.073122,68416.0,68414.0,0.3608]
[1730730918535,0.073122,68416.0,68415.0,0.073123]
[1730730919167,0.073123,68415.0,68414.0,0.3608]
[1730730919447,0.3608,68425.0,68414.0,0.3608]
[1730730919642,0.073115,68423.0,68414.0,0.3608]
[1730730919947,0.433904,68433.0,68422.0,0.3608]
[1730730920244,0.3608,68433.0,68432.0,0.28375031]
[1730730920435,0.3608,68433.0,68432.0,0.073105]
[1730730920436,0.073104,68433.0,68432.0,0.073105]
[1730730920746,0.079112,68425.0,68423.0,0.073114]
[1730730921048,0.079112,68425.0,68424.0,0.231633]
[1730730921238,0.006,68425.0,68424.0,0.231633]
[1730730921549,0.079104,68433.0,68432.0,0.001]
[1730730921843,0.079104,68433.0,68432.0,0.3618]
[1730730922043,0.073104,68433.0,68432.0,0.3608]
[1730730922431,0.3608,68452.0,68435.0,0.073102]
[1730730922638,0.073095,68441.0,68438.0,0.3608]
[1730730922831,0.3608,68467.0,68442.0,0.21064531]
[1730730923138,0.0008,68460.0,68446.0,0.3608]
[1730730923333,0.3608,68474.0,68456.0,0.3608]
[1730730923543,0.3608,68474.0,68457.0,0.15716]
[1730730923544,0.3608,68466.0,68457.0,0.15716]
[1730730923746,0.3608,68458.0,68452.0,0.073083]
[1730730923939,0.3608,68466.0,68453.0,0.15716]
[1730730924142,0.3608,68466.0,68452.0,0.073083]
[1730730924143,0.3608,68466.0,68454.0,0.15716]
[1730730924442,0.3608,68475.0,68454.0,0.15716]
[1730730924443,0.003,68457.0,68456.0,0.073079]
[1730730924839,0.073068,68467.0,68463.0,0.073072]
[1730730925043,0.001,68458.0,68457.0,0.073078]
[1730730925240,0.3608,68475.0,68472.0,0.073062]
[1730730925552,0.022,68488.0,68457.0,0.073078]
[1730730925553,0.073051,68483.0,68479.0,0.073054]
[1730730925847,0.07305,68484.0,68483.0,0.07305]
[1730730926034,0.3608,68490.0,68484.0,0.073049]
[1730730926035,0.07523572,68489.0,68484.0,0.073049]
[1730730926232,0.00219172,68489.0,68484.0,0.073049]
[1730730926546,0.00219172,68489.0,68479.0,0.32456759]
[1730730926737,0.073047,68487.0,68483.0,0.07305]
[1730730927046,0.073047,68487.0,68478.0,0.51792]
[1730730927047,0.3608,68484.0,68478.0,0.15712]
[1730730927256,0.073055,68479.0,68478.0,0.15712]
[1730730927835,0.07306,68474.0,68473.0,0.3608]
[1730730928051,0.3608,68476.0,68472.0,0.001]
[1730730928240,0.073061,68473.0,68472.0,0.001]
[1730730928441,0.073061,68473.0,68464.0,0.00219085]
[1730730928442,0.07307,68465.0,68464.0,0.00219085]
[1730730928641,0.43387,68465.0,68464.0,0.00219085]
[1730730928841,0.43387,68465.0,68441.0,0.073095]
[1730730928842,0.073093,68443.0,68441.0,0.073095]
[1730730929060,0.073093,68443.0,68439.0,0.3608]
[1730730929347,0.6608,68465.0,68439.0,0.3608]
[1730730929348,0.3608,68453.0,68440.0,0.15708]
[1730730929551,0.073093,68443.0,68440.0,0.15708]
[1730730930142,0.073093,68443.0,68442.0,0.012]
[1730730930561,0.3608,68453.0,68447.0,0.073089]
[1730730930562,0.073088,68448.0,68447.0,0.073089]
[1730730930766,0.3608,68453.0,68452.0,0.073084]
[1730730930962,0.3608,68453.0,68446.0,0.073089]
[1730730931164,0.073092,68444.0,68442.0,0.012]
[1730730931355,0.3608,68453.0,68442.0,0.012]
[1730730931550,0.073092,68444.0,68442.0,0.012]
[1730730931759,0.073088,68448.0,68447.0,0.002]
[1730730933271,0.073089,68448.0,68442.0,0.006]
[1730730933569,0.3608,68453.0,68452.0,0.073084]
[1730730933869,0.3608,68453.0,68447.0,0.001]
[1730730934068,0.073088,68448.0,68447.0,0.001]
[1730730934268,0.073088,68448.0,68440.0,0.006]
[1730730934483,0.3608,68441.0,68423.0,0.073114]
[1730730934665,0.3608,68441.0,68419.0,0.15704]
[1730730934666,0.073105,68432.0,68419.0,0.15704]
[1730730934864,0.073105,68432.0,68417.0,0.15704]
[1730730935173,0.073116,68422.0,68419.0,0.073119]
[1730730935480,0.3608,68433.0,68420.0,0.073118]
[1730730935481,0.073114,68424.0,68420.0,0.073118]
[1730730935866,0.073117,68421.0,68420.0,0.073118]
[1730730936068,0.3608,68433.0,68417.0,0.15704]
[1730730936069,0.073119,68419.0,68417.0,0.15704]
[1730730936281,0.073119,68419.0,68417.0,0.23016]
[1730730936478,0.073115,68423.0,68417.0,0.15704]
[1730730936774,0.073117,68421.0,68420.0,0.3608]
[1730730937484,0.3608,68433.0,68429.0,0.073108]
[1730730937687,0.022,68462.0,68461.0,0.073074]
[1730730937867,0.01546,68466.0,68465.0,0.07307]
[1730730938067,0.08034,68493.0,68465.0,0.3608]
[1730730938068,0.3608,68490.0,68465.0,0.3608]
[1730730938267,0.073053,68481.0,68480.0,0.3608]
[1730730938667,0.073053,68481.0,68465.0,0.3608]
[1730730938668,0.073069,68466.0,68465.0,0.3608]
[1730730939072,0.080069,68466.0,68465.0,0.3618]
[1730730940980,0.073037,68496.0,68465.0,0.3618]
[1730730940981,0.073044,68490.0,68465.0,0.7226]
[1730730941173,0.073045,68488.0,68480.0,0.3608]
[1730730941373,0.843053,68481.0,68480.0,0.3608]
[1730730941678,0.843053,68481.0,68465.0,0.3608]
[1730730941679,0.073062,68472.0,68471.0,0.3608]
[1730730941883,0.77,68481.0,68471.0,0.3608]
[1730730942075,0.073062,68473.0,68471.0,0.3608]
[1730730942682,0.00219149,68486.0,68485.0,0.073048]
[1730730942873,0.1,68500.0,68485.0,0.073048]
[1730730942874,0.1,68500.0,68485.0,0.51784]
[1730730943078,0.173032,68500.0,68499.0,0.3608]
[1730730943280,0.173032,68500.0,68485.0,0.36192]
[1730730943281,0.073047,68486.0,68485.0,0.36192]
[1730730943480,0.073047,68486.0,68485.0,0.3608]
[1730730943783,0.032,68499.0,68485.0,0.3608]
[1730730944167,0.073045,68488.0,68485.0,0.3608]
[1730730944371,0.032,68499.0,68485.0,0.3608]
[1730730944571,0.073041,68493.0,68492.0,0.3608]
[1730730946482,0.511041,68493.0,68492.0,0.3618]
[1730730947684,0.738,68493.0,68479.0,0.3608]
[1730730947981,0.073054,68480.0,68479.0,0.3608]
[1730730948781,0.073054,68480.0,68479.0,0.3618]
[1730730949089,0.511134,68480.0,68479.0,0.3628]
[1730730949388,0.073054,68480.0,68479.0,0.3628]
[1730730949881,0.073054,68480.0,68479.0,0.002]
[1730730950676,0.082054,68480.0,68479.0,0.002]
[1730730950874,0.082054,68480.0,68479.0,0.001]
[1730730951078,0.095054,68480.0,68479.0,0.3628]
[1730730951477,0.073054,68480.0,68479.0,0.3608]
[1730730951675,0.086054,68480.0,68479.0,0.3628]
[1730730952285,0.086054,68480.0,68479.0,0.002]
[1730730952891,0.07306,68474.0,68467.0,0.3608]
[1730730953072,0.073066,68468.0,68467.0,0.3608]
[1730730954177,0.073066,68468.0,68467.0,0.3658]
[1730730954383,0.073066,68468.0,68467.0,0.01]
[1730730955080,0.074066,68468.0,68467.0,0.01]
[1730730955283,0.074066,68468.0,68467.0,0.005]
[1730730955479,0.075066,68468.0,68467.0,0.005]
[1730730955983,0.075066,68468.0,68462.0,0.3608]
[1730730955984,0.074066,68468.0,68462.0,0.3608]
[1730730956290,0.073072,68463.0,68462.0,0.3608]
[1730730956790,0.511272,68463.0,68462.0,0.3608]
[1730730957180,0.073072,68463.0,68462.0,0.3608]
[1730730957589,0.511272,68463.0,68462.0,0.3608]
[1730730957901,0.518272,68463.0,68462.0,0.3618]
[1730730958481,0.518272,68463.0,68462.0,0.001]
[1730730958687,0.073085,68451.0,68450.0,0.3608]
[1730730958885,0.073085,68451.0,68450.0,0.3598]
[1730730959984,0.073073,68462.0,68452.0,0.073083]
[1730730960186,0.073076,68459.0,68458.0,0.3608]
[1730730961092,0.3608,68486.0,68458.0,0.79904]
[1730730961396,0.07524892,68477.0,68476.0,0.3608]
[1730730962197,0.08524892,68477.0,68476.0,0.3608]
[1730730962399,0.08524892,68477.0,68470.0,0.3608]
[1730730962597,0.073063,68471.0,68470.0,0.3608]
[1730730963303,0.080076,68459.0,68458.0,0.002]
[1730730963491,0.850076,68459.0,68458.0,0.002]
[1730730963807,0.850076,68459.0,68450.0,0.3608]
[1730730963808,0.073085,68451.0,68450.0,0.3608]
[1730730964507,0.073085,68451.0,68442.0,0.3608]
[1730730964508,0.073093,68443.0,68442.0,0.3608]
[1730730964798,0.073093,68443.0,68440.0,0.00219159]
[1730730964799,0.073095,68441.0,68440.0,0.00219159]
[1730730966289,0.0319,68450.0,68435.0,0.3608]
[1730730966502,0.073094,68442.0,68441.0,0.3608]
[1730730967803,0.075094,68442.0,68441.0,0.3738]
[1730730968298,0.002,68442.0,68441.0,0.446895]
[1730730969099,0.073087,68449.0,68445.0,0.073091]
[1730730969300,0.073087,68449.0,68448.0,0.3608]
[1730730969703,0.07307,68465.0,68448.0,0.3608]
[1730730970002,0.07527245,68455.0,68454.0,0.3608]
[1730730971213,0.08127245,68455.0,68454.0,0.3608]
[1730730971503,0.08727245,68455.0,68454.0,0.3618]
[1730730971803,0.08127245,68455.0,68454.0,0.3618]
[1730730972005,0.07527245,68455.0,68454.0,0.004]
[1730730972303,0.51351245,68455.0,68454.0,0.008]
[1730730972600,1e-08,68455.0,68454.0,0.3688]
[1730730972800,1e-08,68455.0,68454.0,0.441881]
[1730730973008,1e-08,68455.0,68454.0,0.008]
[1730730973193,0.07308001,68455.0,68454.0,0.008]
[1730730973395,0.07308001,68455.0,68454.0,0.004]
[1730730973602,0.07808001,68455.0,68454.0,0.004]
[1730730973907,0.07808001,68455.0,68448.0,0.3608]
[1730730973908,0.073087,68449.0,68448.0,0.3608]
[1730730975309,0.073086,68450.0,68448.0,0.3608]
[1730730975494,0.073087,68449.0,68448.0,0.3608]
[1730730976393,0.073101,68436.0,68435.0,0.3608]
[1730730976901,0.3608,68463.0,68439.0,0.073097]
[1730730977102,0.3608,68463.0,68445.0,0.3608]
[1730730977103,0.07309,68446.0,68445.0,0.3608]
[1730730977505,0.001,68449.0,68435.0,0.3608]
[1730730977692,0.001,68449.0,68448.0,0.3608]
[1730730977893,0.073087,68449.0,68448.0,0.3608]
[1730730979997,0.77,68460.0,68448.0,0.3608]
[1730730980203,0.77,68460.0,68442.0,0.32456759]
[1730730980204,0.00076,68460.0,68459.0,0.794676]
[1730730980502,0.073064,68470.0,68469.0,0.073065]
[1730730980697,0.073064,68470.0,68469.0,0.3608]
[1730730981909,0.078064,68470.0,68469.0,0.3608]
[1730730983208,0.083064,68470.0,68469.0,0.3608]
[1730730983402,0.092064,68470.0,68469.0,0.3618]
[1730730984108,0.084064,68470.0,68469.0,0.3618]
[1730730985006,0.079064,68470.0,68469.0,0.3618]
[1730730985207,0.087064,68470.0,68469.0,0.3628]
[1730730986702,0.078064,68470.0,68469.0,0.3608]
[1730730987014,0.084064,68470.0,68469.0,0.3618]
[1730730989620,0.078064,68470.0,68469.0,0.3608]
[1730730989821,0.006,68470.0,68469.0,0.434865]
[1730730990008,0.011,68470.0,68469.0,0.434865]
[1730730990209,0.073039,68494.0,68469.0,0.79996]
[1730730990421,0.073039,68494.0,68485.0,0.3608]
[1730730990422,0.073047,68486.0,68485.0,0.3608]
[1730730991405,0.073056,68478.0,68477.0,0.3608]
[1730730991716,0.073064,68470.0,68469.0,0.3618]
[1730730992402,0.073064,68470.0,68469.0,0.3608]
[1730730992608,0.073073,68462.0,68461.0,0.3608]
[1730730994010,0.073073,68462.0,68461.0,0.3648]
[1730730994216,0.511273,68462.0,68461.0,0.004]
[1730730995011,0.073064,68470.0,68461.0,0.004]
[1730730995012,0.073062,68472.0,68470.0,0.073064]
[1730730995225,0.073051,68483.0,68471.0,0.3608]
[1730730995405,0.073062,68472.0,68471.0,0.3608]
[1730730996112,0.073069,68466.0,68465.0,0.3608]
[1730730996313,0.073069,68466.0,68461.0,0.003]
[1730730996314,0.073073,68462.0,68461.0,0.003]
[1730730996616,0.073073,68462.0,68461.0,0.001]
[1730730996920,0.077073,68462.0,68461.0,0.3618]
[1730730997110,0.073078,68458.0,68453.0,0.3608]
[1730730997310,0.004,68462.0,68453.0,0.3608]
[1730730997516,0.073081,68455.0,68453.0,0.3608]
[1730730997815,0.004,68462.0,68456.0,0.073079]
[1730730997816,0.073079,68457.0,68456.0,0.073079]
[1730730998011,0.001,68462.0,68453.0,0.3608]
[1730730998012,0.001,68462.0,68460.0,0.073075]
[1730730998217,0.001,68462.0,68461.0,0.433874]
[1730730999116,0.001,68462.0,68461.0,0.434874]
[1730730999520,0.07307,68465.0,68461.0,0.434874]
[1730730999521,0.07307,68465.0,68464.0,0.073071]
[1730731000021,0.77,68471.0,68461.0,0.3608]
[1730731000227,0.21061135,68465.0,68461.0,0.002]
[1730731000530,0.073073,68462.0,68461.0,0.002]
[1730731000721,0.4706,68464.0,68453.0,0.006]
[1730731000920,0.073084,68452.0,68451.0,0.3608]
[1730731002019,0.0313,68461.0,68451.0,0.3608]
[1730731002221,0.0313,68461.0,68457.0,0.3608]
[1730731002222,0.073075,68461.0,68457.0,0.3608]
[1730731002420,0.073073,68463.0,68457.0,0.3608]
[1730731002723,0.004,68465.0,68463.0,0.073071]
[1730731002925,0.073069,68466.0,68464.0,0.3608]
[1730731003515,0.073066,68469.0,68466.0,0.073069]
[1730731003717,0.0313,68478.0,68465.0,0.3608]
[1730731003912,0.073061,68473.0,68472.0,0.3608]
[1730731004524,0.00076,68481.0,68472.0,0.3608]
[1730731004723,0.073061,68473.0,68472.0,0.3608]
[1730731005727,0.77,68482.0,68472.0,0.3608]
[1730731005929,0.105746,68487.0,68479.0,0.3608]
[1730731005930,0.073054,68480.0,68479.0,0.3608]
[1730731007627,0.073054,68480.0,68479.0,0.001]
[1730731007628,0.082054,68480.0,68479.0,0.001]
[1730731007835,0.073061,68473.0,68472.0,0.3608]
[1730731008129,0.28367235,68473.0,68472.0,0.3608]
[1730731008326,0.21061135,68473.0,68463.0,0.3608]
[1730731008518,0.3608,68471.0,68457.0,0.3608]
[1730731008720,0.073077,68458.0,68457.0,0.3608]
[1730731010015,0.28367335,68472.0,68457.0,0.433878]
[1730731010220,0.28367335,68472.0,68463.0,0.3608]
[1730731010221,0.073067,68468.0,68463.0,0.3608]
[1730731010428,0.073071,68464.0,68463.0,0.3608]
[1730731010627,0.073069,68467.0,68464.0,0.07307]
[1730731010830,0.006,68473.0,68463.0,0.3608]
[1730731011130,0.104756,68478.0,68463.0,0.3608]
[1730731011425,0.073071,68464.0,68463.0,0.3608]
[1730731011928,0.073077,68458.0,68457.0,0.001]
[1730731012722,0.073079,68456.0,68455.0,0.3608]
[1730731015131,0.073079,68456.0,68443.0,0.392]
[1730731015132,0.07308,68456.0,68439.0,0.00323153]
[1730731015441,0.3608,68457.0,68439.0,0.00219153]
[1730731015442,0.073096,68440.0,68439.0,0.00219153]
[1730731016517,0.073096,68440.0,68439.0,0.01619153]
[1730731016721,0.074096,68440.0,68439.0,0.03019153]
[1730731018630,0.074096,68440.0,68439.0,0.028]
[1730731018631,0.28470735,68440.0,68439.0,0.028]
[1730731018827,0.64550735,68440.0,68439.0,0.028]
[1730731019328,1.41550735,68440.0,68439.0,0.028]
[1730731019924,1.41550735,68440.0,68439.0,0.014]
[1730731020128,1.41550735,68440.0,68439.0,0.023]
[1730731020324,1.41550735,68440.0,68439.0,0.018]
[1730731020537,1.41550735,68440.0,68428.0,0.3608]
[1730731020538,0.073107,68430.0,68428.0,0.3608]
[1730731021238,0.0731,68437.0,68428.0,0.3608]
[1730731021438,0.0731,68437.0,68436.0,0.3608]
[1730731023537,0.0731,68437.0,68436.0,0.3648]
[1730731023922,0.0731,68437.0,68436.0,0.002]
[1730731024129,0.004,68437.0,68434.0,0.3608]
[1730731024329,0.008,68437.0,68436.0,0.073101]
[1730731025626,0.002,68437.0,68436.0,0.073101]
[1730731025827,0.002,68437.0,68435.0,0.0319]
[1730731025828,0.073101,68436.0,68435.0,0.0319]
[1730731026238,0.073091,68445.0,68439.0,0.073097]
[1730731026426,0.073091,68445.0,68436.0,0.005]
[1730731026427,0.073087,68449.0,68444.0,0.3608]
[1730731026628,0.073077,68459.0,68444.0,0.3608]
[1730731026827,0.073091,68446.0,68444.0,0.3608]
[1730731027028,0.073091,68445.0,68444.0,0.3608]
[1730731028643,0.073091,68445.0,68436.0,0.00704277]
[1730731028644,0.073091,68445.0,68436.0,4.277e-05]
[1730731028839,0.0731,68437.0,68436.0,4.277e-05]
[1730731029231,0.006,68445.0,68436.0,4.277e-05]
[1730731029441,0.079091,68445.0,68444.0,0.3608]
[1730731029842,0.004,68445.0,68444.0,0.3608]
[1730731030145,0.004,68445.0,68444.0,0.7216]
[1730731030339,0.002,68445.0,68444.0,0.7216]
[1730731031540,0.433878,68458.0,68444.0,0.7216]
[1730731031541,0.00219209,68465.0,68444.0,1.233012]
[1730731031747,0.00219209,68465.0,68456.0,0.3608]
[1730731031937,0.00219209,68465.0,68464.0,0.073071]
[1730731033147,0.00319209,68465.0,68464.0,0.073071]
[1730731033648,0.01919209,68465.0,68464.0,0.073071]
[1730731035145,0.00219209,68465.0,68464.0,0.073071]
[1730731036247,0.07526209,68465.0,68464.0,0.073071]
[1730731036444,0.07526209,68465.0,68463.0,0.0315]
[1730731036445,0.073071,68464.0,68463.0,0.0315]
[1730731036648,0.073069,68466.0,68465.0,0.073069]
[1730731036837,0.073069,68466.0,68465.0,0.433869]
[1730731037747,0.77,68477.0,68465.0,0.3608]
[1730731037940,0.00219133,68484.0,68476.0,0.7216]
[1730731038138,0.00219133,68484.0,68483.0,0.43385]
[1730731039341,0.8019,68497.0,68483.0,0.43385]
[1730731039342,0.77,68497.0,68483.0,0.3608]
[1730731039546,0.014,68484.0,68483.0,0.3618]
[1730731039740,0.028,68484.0,68483.0,0.79665]
[1730731039946,0.87,68500.0,68483.0,0.7236]
[1730731040146,0.073038,68495.0,68494.0,0.3608]
[1730731041550,0.87076,68500.0,68494.0,0.3608]
[1730731041738,0.073037,68496.0,68494.0,0.3608]
[1730731042046,0.87,68500.0,68494.0,0.3608]
[1730731042047,0.073038,68495.0,68494.0,0.3608]
[1730731042967,0.079038,68495.0,68494.0,0.3618]
[1730731043255,0.079038,68495.0,68494.0,0.3628]
[1730731043954,0.073062,68472.0,68471.0,0.3608]
[1730731044655,0.103339,68494.0,68471.0,0.3608]
[1730731044850,0.073047,68487.0,68483.0,0.43385]
[1730731045056,0.00976,68495.0,68488.0,0.073045]
[1730731045057,0.003,68495.0,68488.0,0.073045]
[1730731045253,0.003,68495.0,68490.0,0.433843]
[1730731045456,0.1,68500.0,68499.0,0.073033]
[1730731045758,0.0303,68518.0,68499.0,0.57141135]
[1730731045953,0.073021,68511.0,68510.0,0.3608]
[1730731046856,0.073026,68507.0,68506.0,0.3608]
[1730731047459,0.28363035,68513.0,68494.0,0.073039]
[1730731047653,0.3608,68515.0,68502.0,0.07303]
[1730731047848,0.77076,68517.0,68491.0,0.53332]
[1730731047849,0.073018,68513.0,68512.0,0.3608]
[1730731048256,0.77,68517.0,68512.0,0.3608]
[1730731048450,0.073018,68514.0,68512.0,0.3608]
[1730731048650,0.77076,68517.0,68512.0,0.3608]
[1730731048651,0.073018,68513.0,68512.0,0.3608]
[1730731048851,0.078018,68513.0,68512.0,0.3608]
[1730731049051,0.078018,68513.0,68512.0,0.3618]
[1730731049554,0.073018,68513.0,68512.0,0.002]
[1730731050253,0.073042,68498.0,68497.0,0.3608]
[1730731050471,0.073042,68498.0,68474.0,0.11870186]
[1730731050472,0.073042,68498.0,68487.0,0.3608]
[1730731050664,0.07305,68491.0,68487.0,0.3608]
[1730731050967,0.21061135,68500.0,68487.0,0.3608]
[1730731051155,0.073052,68488.0,68487.0,0.3608]
[1730731051649,0.073059,68482.0,68481.0,0.3608]
[1730731052252,0.073055,68486.0,68474.0,0.00219047]
[1730731052454,0.073066,68475.0,68474.0,0.00219047]
[1730731053362,0.073066,68475.0,68455.0,0.3608]
[1730731053363,0.073075,68467.0,68455.0,0.3608]
[1730731053658,0.64448635,68467.0,68444.0,0.073099]
[1730731053858,1.85264635,68467.0,68444.0,0.073099]
[1730731054050,0.073093,68451.0,68443.0,0.0303]
[1730731054253,0.3608,68458.0,68443.0,0.0303]
[1730731054454,0.073097,68447.0,68442.0,0.3608]
[1730731054651,0.0731,68444.0,68442.0,0.3608]
[1730731054859,0.3608,68451.0,68442.0,0.3608]
[1730731055057,0.0731,68443.0,68442.0,0.3608]
[1730731055872,0.21061135,68446.0,68436.0,4.277e-05]
[1730731055873,0.3608,68445.0,68436.0,4.277e-05]
[1730731056060,0.001,68444.0,68443.0,0.006]
[1730731056256,0.074099,68444.0,68443.0,0.006]
[1730731057663,0.21061135,68445.0,68442.0,0.007]
[1730731057865,0.073096,68448.0,68442.0,0.014]
[1730731058067,0.073095,68448.0,68442.0,0.014]
[1730731058273,0.073095,68448.0,68443.0,0.006]
[1730731058461,0.073096,68447.0,68443.0,0.006]
[1730731058970,0.57141135,68459.0,68442.0,0.014]
[1730731058971,0.0731,68443.0,68442.0,0.014]
[1730731059159,0.0731,68443.0,68442.0,0.007]
[1730731060073,0.51142,68443.0,68442.0,0.007]
[1730731060371,0.073107,68437.0,68436.0,0.36084277]
[1730731061862,0.077107,68437.0,68436.0,0.36084277]
[1730731062175,0.077107,68437.0,68436.0,4.277e-05]
[1730731062372,0.080107,68437.0,68436.0,0.00104277]
[1730731062577,0.079107,68437.0,68436.0,0.00104277]
[1730731062883,0.080107,68437.0,68436.0,0.00204277]
[1730731063877,0.074107,68437.0,68436.0,0.00104277]
[1730731064066,0.080107,68437.0,68436.0,0.00104277]
[1730731064269,0.080107,68437.0,68436.0,0.00204277]
[1730731064482,0.074107,68437.0,68436.0,0.00204277]
[1730731064673,0.080107,68437.0,68436.0,0.00204277]
[1730731064974,0.079107,68437.0,68436.0,0.00104277]
[1730731065179,0.080107,68437.0,68436.0,0.00204277]
[1730731065586,0.518467,68437.0,68436.0,0.00204277]
[1730731065793,1.10616,68437.0,68410.0,0.3186]
[1730731066090,0.073132,68414.0,68410.0,0.3186]
[1730731066285,0.21061135,68422.0,68410.0,0.3186]
[1730731066482,0.073124,68421.0,68410.0,0.3186]
[1730731066688,0.3608,68421.0,68405.0,0.104941]
[1730731066985,0.073133,68413.0,68405.0,0.104941]
[1730731067285,0.3608,68421.0,68405.0,0.104941]
[1730731067492,0.3608,68421.0,68405.0,0.0318]
[1730731067493,0.07314,68406.0,68405.0,0.0318]
[1730731068795,0.07314,68406.0,68405.0,0.013]
[1730731069289,0.001,68414.0,68405.0,0.013]
[1730731070204,0.001,68406.0,68405.0,0.027]
[1730731070685,0.073137,68409.0,68405.0,0.013]
[1730731070882,0.073137,68409.0,68405.0,0.026]
[1730731071285,0.073137,68409.0,68405.0,0.013]
[1730731071596,0.001,68406.0,68405.0,0.026]
[1730731071915,0.07414,68406.0,68405.0,0.026]
[1730731072593,0.07314,68406.0,68405.0,0.026]
[1730731073792,0.43394,68406.0,68405.0,0.026]
[1730731073988,0.43394,68406.0,68405.0,0.013]
[1730731074301,0.43494,68406.0,68405.0,0.027]
[1730731074489,0.8735,68406.0,68405.0,0.027]
[1730731074693,0.073145,68401.0,68400.0,0.1]
[1730731075701,0.811745,68401.0,68382.0,0.3608]
[1730731075900,0.21061135,68390.0,68382.0,0.3608]
[1730731076103,0.21061135,68390.0,68375.0,0.3608]
[1730731076307,0.21061135,68390.0,68367.0,0.03389391]
[1730731076308,0.073165,68383.0,68372.0,0.3608]
[1730731076601,0.21061135,68384.0,68372.0,0.3608]
[1730731076602,0.073173,68375.0,68372.0,0.3608]
[1730731076788,0.073173,68375.0,68369.0,0.104179]
[1730731076989,0.073177,68372.0,68367.0,0.00219391]
[1730731077498,0.3608,68374.0,68367.0,0.00219391]
[1730731077801,0.3608,68374.0,68358.0,0.0305]
[1730731077802,0.073188,68361.0,68358.0,0.0305]
[1730731078008,0.073189,68361.0,68358.0,0.0305]
[1730731078206,0.07319,68359.0,68358.0,0.0305]
[1730731078790,0.21061135,68364.0,68350.0,0.3608]
[1730731079004,0.073192,68358.0,68351.0,0.073198]
[1730731079193,0.073196,68354.0,68350.0,0.3608]
[1730731079706,0.002,68359.0,68350.0,0.3608]
[1730731079909,0.075191,68359.0,68350.0,0.3608]
[1730731080199,0.21061135,68358.0,68350.0,0.3608]
[1730731080413,0.21061135,68358.0,68330.0,0.21061135]
[1730731080414,0.57141135,68351.0,68337.0,0.3608]
[1730731080591,0.073207,68344.0,68337.0,0.3608]
[1730731080790,0.073207,68344.0,68336.0,0.03]
[1730731080791,0.073214,68337.0,68336.0,0.03]
[1730731080997,0.3608,68344.0,68331.0,0.00219505]
[1730731080998,0.57141135,68338.0,68331.0,0.00219505]
[1730731081203,0.073219,68332.0,68331.0,0.00219505]
[1730731081400,0.3608,68345.0,68326.0,0.3608]
[1730731081594,0.21061135,68339.0,68326.0,0.3608]
[1730731081914,0.28382435,68339.0,68330.0,0.07322]
[1730731082090,0.002,68337.0,68330.0,0.07322]
[1730731082407,0.002,68337.0,68322.0,0.3608]
[1730731082613,0.001,68337.0,68322.0,0.3608]
[1730731082908,0.001,68337.0,68330.0,0.073221]
[1730731083102,0.001,68337.0,68328.0,0.3608]
[1730731083311,0.3618,68345.0,68334.0,0.3608]
[1730731083614,0.001,68345.0,68344.0,0.073206]
[1730731083914,0.00219594,68353.0,68344.0,0.073206]
[1730731083915,0.00219594,68353.0,68352.0,0.073198]
[1730731084209,0.00219594,68353.0,68349.0,0.3608]
[1730731084404,0.00219594,68353.0,68351.0,0.073198]
[1730731084604,0.00219594,68353.0,68352.0,0.073198]
[1730731085407,0.03019594,68353.0,68352.0,0.073198]
[1730731086104,0.01619594,68353.0,68352.0,0.073198]
[1730731086307,0.02119594,68353.0,68352.0,0.074198]
[1730731086495,0.02119594,68353.0,68352.0,0.001]
[1730731087001,0.02119594,68353.0,68352.0,0.074198]
[1730731087210,0.00719594,68353.0,68352.0,0.074198]
[1730731087508,0.01919594,68353.0,68352.0,0.514118]
[1730731087806,0.00719594,68353.0,68352.0,0.513118]
[1730731088004,0.3608,68368.0,68366.0,0.073183]
[1730731088505,0.00137,68379.0,68367.0,0.3608]
[1730731088701,0.00137,68379.0,68373.0,0.3608]
[1730731088702,0.073171,68378.0,68373.0,0.3608]
[1730731088908,0.00137,68379.0,68373.0,0.3926]
[1730731089304,0.00137,68379.0,68378.0,0.07317]
[1730731089505,0.0008,68384.0,68383.0,0.073165]
[1730731089701,0.073155,68392.0,68389.0,0.073158]
[1730731089906,0.77,68399.0,68384.0,0.433962]
[1730731090110,0.21061135,68394.0,68377.0,0.3608]
[1730731090301,0.21061135,68386.0,68377.0,0.3608]